Workbook

Sheet 7-10
A1: СОГЛАСОВАНО | O1: УТВЕРЖДЕНО
O2: ООО "КРЕПЫШ"
O3: _______________________Ефремов В.Ю.
A6: Меню для организации питания детей возрасте от 7 до 10 лет в образовательных учреждениях Мензелинского района РТ на 1 полугодие 2024-2025 учебный год.
A8: 1 день, 1 неделя
A9: № рецептуры | B9: Прием пищи, наименование блюда | C9: Масса | D9: Пищевые вещества | G9: Энергетическая ценность | H9: Витамины | M9: Минеральные вещества
D10: Белки | E10: Жиры | F10: Углеводы | H10: B1 | I10: B2 | J10: A | K10: D | L10: C | M10: Na | N10: K | O10: Ca | P10: Mg | Q10: P | R10: Fe | S10: I | T10: Se | U10: F
C11: г | D11: г | E11: г | F11: г | G11: ккал | H11: мг | I11: мг | J11: мкг рет.экв | K11: мкг | L11: мг | M11: мг | N11: мг | O11: мг | P11: мг | Q11: мг | R11: мг | S11: мкг | T11: мкг | U11: мкг
B12: Понедельник, 1 неделя
B13: Горячий завтрак | C13: 7-10
A14: 54-7з-2020 | B14: Салат из белокочанной капусты с растительным маслом | C14: 60 | D14: 1.5 | E14: 6.1 | F14: 6.2 | G14: 85.8 | H14: 0.03 | I14: 0.04 | J14: 122.25 | K14: 0 | L14: 34.78 | M14: 88.69 | N14: 247.73 | O14: 40.39 | P14: 15.18 | Q14: 30.31 | R14: 0.55 | S14: 10.73 | T14: 0.26 | U14: 12.66
A15: 100 | B15: Суп картофельный с вермишелью | C15: 200 | D15: 9.2 | E15: 5.35 | F15: 16.2 | G15: 94.4 | H15: 0.1 | I15: 0 | J15: 0.2 | K15: 0 | L15: 5.3 | M15: 0 | N15: 0 | O15: 19.2 | P15: 18.7 | Q15: 46.1 | R15: 0.9 | S15: 0 | T15: 0 | U15: 0
A16: т/к №410 | B16: Треугольник П/Ф | C16: 70 | D16: 5.7 | E16: 5 | F16: 29.8 | G16: 221.7 | H16: 0.1 | I16: 0 | J16: 0 | K16: 0 | L16: 1.5 | M16: 0 | N16: 0 | O16: 26.8 | P16: 25.7 | Q16: 100.5 | R16: 1.5 | S16: 0 | T16: 0 | U16: 0
A17: 54-4гн-2020 | B17: Чай с молоком и сахаром | C17: 200 | D17: 1.6 | E17: 1.1 | F17: 8.6 | G17: 50.9 | H17: 0.01 | I17: 0.07 | J17: 6.9 | K17: 0 | L17: 0.3 | M17: 19.68 | N17: 81.35 | O17: 103.48 | P17: 9.92 | Q17: 46.33 | R17: 0.78 | S17: 4.5 | T17: 0.88 | U17: 10
A18: Пром. | B18: Хлеб ржаной | C18: 20 | D18: 1.3 | E18: 0.2 | F18: 6.7 | G18: 34.2 | H18: 0.04 | I18: 0.02 | J18: 0 | K18: 0 | L18: 0 | M18: 122 | N18: 49 | O18: 7 | P18: 9.4 | Q18: 31.6 | R18: 0.78 | S18: 0 | T18: 6.18 | U18: 0
B19: Итого за Завтрак | C19: =SUM(C14:C18) -> 550 | D19: =SUM(D14:D18) -> 19.3 | E19: 17.75 | F19: 67.5 | G19: 487 | H19: 0.28 | I19: 0.13 | J19: 129.35 | K19: 0 | L19: 41.88 | M19: 230.37 | N19: 378.08 | O19: 196.87 | P19: 78.9 | Q19: 254.84 | R19: 4.51 | S19: 15.23 | T19: 7.32 | U19: 22.66
B20: Итого за день | C20: =C19 -> 550 | D20: =D19 -> 19.3 | E20: =E19 -> 17.75 | F20: 67.5 | G20: 487 | H20: 0.28 | I20: 0.13 | J20: 129.35 | K20: 0 | L20: 41.88 | M20: 230.37 | N20: 378.08 | O20: 196.87 | P20: 78.9 | Q20: 254.84 | R20: 4.51 | S20: 15.23 | T20: 7.32 | U20: 22.66
A22: 2 день, 1 неделя
A23: № рецептуры | B23: Прием пищи, наименование блюда | C23: Масса | D23: Пищевые вещества | G23: Энергетическая ценность | H23: Витамины | M23: Минеральные вещества
D24: Белки | E24: Жиры | F24: Углеводы | H24: B1 | I24: B2 | J24: A | K24: D | L24: C | M24: Na | N24: K | O24: Ca | P24: Mg | Q24: P | R24: Fe | S24: I | T24: Se | U24: F
C25: г | D25: г | E25: г | F25: г | G25: ккал | H25: мг | I25: мг | J25: мкг рет.экв | K25: мкг | L25: мг | M25: мг | N25: мг | O25: мг | P25: мг | Q25: мг | R25: мг | S25: мкг | T25: мкг | U25: мкг
B26: Вторник, 1 неделя
B27: Горячий завтрак | C27: 7-10
A28: №Т/К 41 | B28: Салат из моркови с сахаром и растительным маслом | C28: 60 | D28: 0.5 | E28: 6.1 | F28: 4.3 | G28: 74.3 | H28: 0.03 | I28: 0.03 | J28: 732.9 | K28: 0 | L28: 3.63 | M28: 89.79 | N28: 123.26 | O28: 13.5 | P28: 15.57 | Q28: 22.38 | R28: 0.66 | S28: 10.19 | T28: 0.09 | U28: 21.57
A29: №т/к 333 | B29: Картофель по-деревенски | C29: 150 | D29: 3.1 | E29: 5.5 | F29: 25.3 | G29: 163.2 | H29: 0.2 | I29: 0 | J29: 0 | K29: 0 | L29: 12.8 | M29: 0 | N29: 0 | O29: 17 | P29: 33.3 | Q29: 84.1 | R29: 1.4 | S29: 0 | T29: 0 | U29: 0
A30: №243 | B30: Сосиски говяжьи отварные, п/ф (2 шт) | C30: 100 | D30: 8.9 | E30: 7.35 | F30: 19.1 | G30: 202.15 | H30: 0 | I30: 0 | J30: 0.08 | K30: 0.01 | L30: 0 | M30: 0 | N30: 0 | O30: 7.44 | P30: 15.51 | Q30: 137.39 | R30: 1.74 | S30: 0 | T30: 0 | U30: 0
A31: 54-5хн | B31: Компот из яблок и вишни | C31: 200 | D31: 0.23 | E31: 0.11 | F31: 10.15 | G31: 22.5 | H31: 0 | I31: 0 | J31: 2.53 | K31: 0 | L31: 2 | M31: 8 | N31: 91 | O31: 64 | P31: 6 | Q31: 7 | R31: 0.5 | S31: 0.82 | T31: 0.1 | U31: 4.18
A32: Пром. | B32: Хлеб пшеничный | C32: 20 | D32: 1.52 | E32: 0.16 | F32: 9.84 | G32: 46.9 | H32: 0.02 | I32: 0.01 | J32: 0 | K32: 0 | L32: 0 | M32: 100 | N32: 19 | O32: 4 | P32: 3 | Q32: 13 | R32: 0.2 | S32: 0.64 | T32: 1.2 | U32: 2.9
A33: Пром. | B33: Хлеб ржаной | C33: 20 | D33: 1.3 | E33: 0.2 | F33: 6.7 | G33: 34.2 | H33: 0.04 | I33: 0.02 | J33: 0 | K33: 0 | L33: 0 | M33: 122 | N33: 49 | O33: 7 | P33: 9.4 | Q33: 31.6 | R33: 0.78 | S33: 0 | T33: 6.18 | U33: 0
B34: Итого за Завтрак | C34: =SUM(C28:C33) -> 550 | D34: 15.55 | E34: 19.42 | F34: 75.39 | G34: 543.25 | H34: 0.29 | I34: 0.06 | J34: 735.51 | K34: 0.01 | L34: 18.43 | M34: 319.79 | N34: 282.26 | O34: 112.94 | P34: 82.78 | Q34: 295.47 | R34: 5.28 | S34: 11.65 | T34: 7.57 | U34: 28.65
B35: Итого за день | C35: =C34 -> 550 | D35: =D34 -> 15.55 | E35: 19.42 | F35: 75.39 | G35: 543.25 | H35: 0.29 | I35: 0.06 | J35: 735.51 | K35: 0.01 | L35: 18.43 | M35: 319.79 | N35: 282.26 | O35: 112.94 | P35: 82.78 | Q35: 295.47 | R35: 5.28 | S35: 11.65 | T35: 7.57 | U35: 28.65
A37: 3 день, 1 неделя
A38: № рецептуры | B38: Прием пищи, наименование блюда | C38: Масса | D38: Пищевые вещества | G38: Энергетическая ценность | H38: Витамины | M38: Минеральные вещества
D39: Белки | E39: Жиры | F39: Углеводы | H39: B1 | I39: B2 | J39: A | K39: D | L39: C | M39: Na | N39: K | O39: Ca | P39: Mg | Q39: P | R39: Fe | S39: I | T39: Se | U39: F
C40: г | D40: г | E40: г | F40: г | G40: ккал | H40: мг | I40: мг | J40: мкг рет.экв | K40: мкг | L40: мг | M40: мг | N40: мг | O40: мг | P40: мг | Q40: мг | R40: мг | S40: мкг | T40: мкг | U40: мкг
B41: Среда, 1 неделя
B42: Горячий завтрак | C42: 7-10
A43: 54-16з-2020 | B43: Винегрет с растительным маслом | C43: 60 | D43: 0.7 | E43: 5.4 | F43: 4 | G43: 67.1 | H43: 0.02 | I43: 0.02 | J43: 72.89 | K43: 0 | L43: 2.26 | M43: 200.99 | N43: 127.85 | O43: 12.1 | P43: 9.66 | Q43: 21.4 | R43: 0.41 | S43: 7.86 | T43: 0.13 | U43: 11.85
A44: 54-1г-2020 | B44: Макароны отварные | C44: 150 | D44: 5.3 | E44: 4.9 | F44: 32.8 | G44: 196.8 | H44: 0.06 | I44: 0.02 | J44: 18.36 | K44: 0.09 | L44: 0 | M44: 149.04 | N44: 53.8 | O44: 105.83 | P44: 7.19 | Q44: 40.7 | R44: 0.73 | S44: 20.77 | T44: 0.06 | U44: 11.92
A45: Т/к №290 | B45: Птица тушеная | C45: 80/30 | D45: 8.65 | E45: 7.83 | F45: 3.9 | G45: 145 | H45: 0.1 | I45: 0 | J45: 0 | K45: 0 | L45: 1.5 | M45: 0 | N45: 0 | O45: 26.4 | P45: 16.6 | Q45: 115.3 | R45: 0.9 | S45: 0 | T45: 0 | U45: 0
A46: 54-3гн-2020 | B46: Чай с лимоном и сахаром | C46: 207 | D46: 0.2 | E46: 0.1 | F46: 6.6 | G46: 27.9 | H46: 0 | I46: 0.01 | J46: 0.38 | K46: 0 | L46: 1.16 | M46: 1.26 | N46: 30.23 | O46: 67 | P46: 4.56 | Q46: 8.52 | R46: 0.77 | S46: 0.01 | T46: 0.02 | U46: 0.7
A47: Пром. | B47: Хлеб ржаной | C47: 20 | D47: 1.3 | E47: 0.2 | F47: 6.7 | G47: 34.2 | H47: 0.04 | I47: 0.02 | J47: 0 | K47: 0 | L47: 0 | M47: 122 | N47: 49 | O47: 7 | P47: 9.4 | Q47: 31.6 | R47: 0.78 | S47: 0 | T47: 6.18 | U47: 0
A48: Пром. | B48: Хлеб пшеничный | C48: 20 | D48: 1.52 | E48: 0.16 | F48: 9.84 | G48: 46.9 | H48: 0.02 | I48: 0.01 | J48: 0 | K48: 0 | L48: 0 | M48: 100 | N48: 19 | O48: 4 | P48: 3 | Q48: 13 | R48: 0.2 | S48: 0.64 | T48: 1.2 | U48: 2.9
A49: Пром. | B49: Фрукт (яблоко, банан, апельсин) | C49: 200 | D49: 0.6 | E49: 0.6 | F49: 14.7 | G49: 66.6 | H49: 0.04 | I49: 0.03 | J49: 7.5 | K49: 0 | L49: 15 | M49: 39 | N49: 417 | O49: 24 | P49: 14 | Q49: 17 | R49: 3.3 | S49: 3 | T49: 0.4 | U49: 12
B50: Итого за Завтрак | C50: 767 | D50: =SUM(D43:D49) -> 18.27 | E50: =SUM(E43:E49) -> 19.19 | F50: 78.54 | G50: 584.5 | H50: 0.28 | I50: 0.11 | J50: 99.13 | K50: 0.09 | L50: 19.92 | M50: 612.29 | N50: 696.88 | O50: 246.33 | P50: 64.41 | Q50: 247.52 | R50: 7.09 | S50: 32.28 | T50: 7.99 | U50: 39.37
B51: Итого за день | C51: =C50 -> 767 | D51: =D50 -> 18.27 | E51: =E50 -> 19.19 | F51: 78.54 | G51: 584.5 | H51: 0.28 | I51: 0.11 | J51: 99.13 | K51: 0.09 | L51: 19.92 | M51: 612.29 | N51: 696.88 | O51: 246.33 | P51: 64.41 | Q51: 247.52 | R51: 7.09 | S51: 32.28 | T51: 7.99 | U51: 39.37
A53: 4 день, 1 неделя
A54: № рецептуры | B54: Прием пищи, наименование блюда | C54: Масса | D54: Пищевые вещества | G54: Энергетическая ценность | H54: Витамины | M54: Минеральные вещества
D55: Белки | E55: Жиры | F55: Углеводы | H55: B1 | I55: B2 | J55: A | K55: D | L55: C | M55: Na | N55: K | O55: Ca | P55: Mg | Q55: P | R55: Fe | S55: I | T55: Se | U55: F
C56: г | D56: г | E56: г | F56: г | G56: ккал | H56: мг | I56: мг | J56: мкг рет.экв | K56: мкг | L56: мг | M56: мг | N56: мг | O56: мг | P56: мг | Q56: мг | R56: мг | S56: мкг | T56: мкг | U56: мкг
B57: Четверг, 1 неделя
B58: Горячий завтрак | C58: 7-10
A59: 54-9з-2020 | B59: Салат из белокочанной капусты с морковью, яблоками и растительным маслом | C59: 60 | D59: 0.8 | E59: 6.1 | F59: 3.6 | G59: 72.5 | H59: 0.02 | I59: 0.02 | J59: 241.63 | K59: 0 | L59: 17.32 | M59: 87.51 | N59: 160.14 | O59: 23.5 | P59: 11.17 | Q59: 18.8 | R59: 0.56 | S59: 9.87 | T59: 0.15 | U59: 10.98
A60: 54-11г-2020 | B60: Картофельное пюре | C60: 150 | D60: 3.1 | E60: 5.3 | F60: 19.8 | G60: 139.4 | H60: 0.12 | I60: 0.11 | J60: 23.8 | K60: 0.09 | L60: 10.2 | M60: 161.78 | N60: 624.83 | O60: 39.49 | P60: 28.23 | Q60: 84.47 | R60: 1.03 | S60: 28.46 | T60: 0.78 | U60: 42.79
A61: т/к №296 | B61: "Ёжики" мясные 2 шт | C61: 100 | D61: 10.8 | E61: 7.3 | F61: 22.5 | G61: 240.1 | H61: 0 | I61: 0 | J61: 0 | K61: 0 | L61: 1.6 | M61: 0 | N61: 0 | O61: 26.8 | P61: 23.9 | Q61: 129.9 | R61: 1.8 | S61: 0 | T61: 0 | U61: 0
A62: Т/к №430 | B62: Чай с сахаром и яблоком | C62: 200 | D62: 0.2 | E62: 0 | F62: 8.2 | G62: 34.1 | H62: 0 | I62: 0 | J62: 0 | K62: 0 | L62: 0.4 | M62: 0 | N62: 0 | O62: 14.1 | P62: 6.5 | Q62: 8.4 | R62: 0.9 | S62: 0 | T62: 0 | U62: 0
A63: Пром. | B63: Хлеб ржаной | C63: 20 | D63: 1.3 | E63: 0.2 | F63: 6.7 | G63: 34.2 | H63: 0.04 | I63: 0.02 | J63: 0 | K63: 0 | L63: 0 | M63: 122 | N63: 49 | O63: 7 | P63: 9.4 | Q63: 31.6 | R63: 0.78 | S63: 0 | T63: 6.18 | U63: 0
A64: Пром. | B64: Хлеб пшеничный | C64: 20 | D64: 1.52 | E64: 0.16 | F64: 9.84 | G64: 46.9 | H64: 0.02 | I64: 0.01 | J64: 0 | K64: 0 | L64: 0 | M64: 100 | N64: 19 | O64: 4 | P64: 3 | Q64: 13 | R64: 0.2 | S64: 0.64 | T64: 1.2 | U64: 2.9
B65: Итого за Завтрак | C65: =SUM(C59:C64) -> 550 | D65: =SUM(D59:D64) -> 17.72 | E65: =SUM(E59:E64) -> 19.06 | F65: 70.64 | G65: 567.2 | H65: 0.2 | I65: 0.16 | J65: 265.43 | K65: 0.09 | L65: 29.52 | M65: 471.29 | N65: 852.97 | O65: 114.89 | P65: 82.2 | Q65: 286.17 | R65: 5.27 | S65: 38.97 | T65: 8.31 | U65: 56.67
B66: Итого за день | C66: =C65 -> 550 | D66: =D65 -> 17.72 | E66: 19.06 | F66: 70.64 | G66: 567.2 | H66: 0.2 | I66: 0.16 | J66: 265.43 | K66: 0.09 | L66: 29.52 | M66: 471.29 | N66: 852.97 | O66: 114.89 | P66: 82.2 | Q66: 286.17 | R66: 5.27 | S66: 38.97 | T66: 8.31 | U66: 56.67
A68: 5 день, 1 неделя
A69: № рецептуры | B69: Прием пищи, наименование блюда | C69: Масса | D69: Пищевые вещества | G69: Энергетическая ценность | H69: Витамины | M69: Минеральные вещества
D70: Белки | E70: Жиры | F70: Углеводы | H70: B1 | I70: B2 | J70: A | K70: D | L70: C | M70: Na | N70: K | O70: Ca | P70: Mg | Q70: P | R70: Fe | S70: I | T70: Se | U70: F
C71: г | D71: г | E71: г | F71: г | G71: ккал | H71: мг | I71: мг | J71: мкг рет.экв | K71: мкг | L71: мг | M71: мг | N71: мг | O71: мг | P71: мг | Q71: мг | R71: мг | S71: мкг | T71: мкг | U71: мкг
B72: Пятница, 1 неделя
B73: Горячий завтрак | C73: 7-10
A74: 54-11з-2020 | B74: Салат из моркови с яблоками с растительным маслом | C74: 60 | D74: 0.5 | E74: 6.1 | F74: 4.3 | G74: 74.3 | H74: 0.03 | I74: 0.03 | J74: 732.9 | K74: 0 | L74: 3.63 | M74: 89.79 | N74: 123.26 | O74: 13.5 | P74: 15.57 | Q74: 22.38 | R74: 0.66 | S74: 10.19 | T74: 0.09 | U74: 21.57
A75: 54-12м-2020 | B75: Плов с куринными грудками | C75: 150/50 | D75: 11.7 | E75: 8.98 | F75: 26.01 | G75: 233.2 | H75: 0.07 | I75: 0.06 | J75: 144.87 | K75: 0 | L75: 2.08 | M75: 272.9 | N75: 287.76 | O75: 72.64 | P75: 78.85 | Q75: 174.89 | R75: 1.53 | S75: 37.41 | T75: 19.63 | U75: 118.1
A76: 54-4гн-2020 | B76: Компот из кураги | C76: 200 | D76: 0.98 | E76: 0.05 | F76: 15.64 | G76: 66.9 | H76: 0.01 | I76: 0.03 | J76: 69.96 | K76: 0 | L76: 0 | M76: 3 | N76: 285 | O76: 90 | P76: 18 | Q76: 25 | R76: 0.6 | S76: 0 | T76: 0 | U76: 0
A77: Пром. | B77: Хлеб ржаной | C77: 20 | D77: 1.3 | E77: 0.2 | F77: 6.7 | G77: 34.2 | H77: 0.04 | I77: 0.02 | J77: 0 | K77: 0 | L77: 0 | M77: 122 | N77: 49 | O77: 7 | P77: 9.4 | Q77: 31.6 | R77: 0.78 | S77: 0 | T77: 6.18 | U77: 0
A78: 54-10В | B78: Булочка ванильная | C78: 60 | D78: 4.68 | E78: 4.03 | F78: 30.46 | G78: 177 | H78: 0.05 | I78: 0.02 | J78: 19.12 | K78: 0.15 | L78: 0 | M78: 241 | N78: 50 | O78: 18 | P78: 6 | Q78: 41 | R78: 0.5 | S78: 33.36 | T78: 3.1 | U78: 11.03
B79: Итого за Завтрак | C79: 540 | D79: =SUM(D74:D78) -> 19.16 | E79: =SUM(E74:E78) -> 19.36 | F79: 83.11 | G79: 585.6 | H79: 0.2 | I79: 0.16 | J79: 966.85 | K79: 0.15 | L79: 5.71 | M79: 728.69 | N79: 795.02 | O79: 201.14 | P79: 127.82 | Q79: 294.87 | R79: 4.07 | S79: 80.96 | T79: 29 | U79: 150.7
B80: Итого за день | C80: =C79 -> 540 | D80: =D79 -> 19.16 | E80: =E79 -> 19.36 | F80: 83.11 | G80: 585.6 | H80: 0.2 | I80: 0.16 | J80: 966.85 | K80: 0.15 | L80: 5.71 | M80: 728.69 | N80: 795.02 | O80: 201.14 | P80: 127.82 | Q80: 294.87 | R80: 4.07 | S80: 80.96 | T80: 29 | U80: 150.7
A82: 6 день, 1 неделя
A83: № рецептуры | B83: Прием пищи, наименование блюда | C83: Масса | D83: Пищевые вещества | G83: Энергетическая ценность | H83: Витамины | M83: Минеральные вещества
D84: Белки | E84: Жиры | F84: Углеводы | H84: B1 | I84: B2 | J84: A | K84: D | L84: C | M84: Na | N84: K | O84: Ca | P84: Mg | Q84: P | R84: Fe | S84: I | T84: Se | U84: F
C85: г | D85: г | E85: г | F85: г | G85: ккал | H85: мг | I85: мг | J85: мкг рет.экв | K85: мкг | L85: мг | M85: мг | N85: мг | O85: мг | P85: мг | Q85: мг | R85: мг | S85: мкг | T85: мкг | U85: мкг
B86: Суббота, 1 неделя
B87: Горячий завтрак | C87: 7-10
A88: 54-16з-2020 | B88: Винегрет с растительным маслом | C88: 60 | D88: 0.7 | E88: 5.4 | F88: 4 | G88: 67.1 | H88: 0.02 | I88: 0.02 | J88: 72.89 | K88: 0 | L88: 2.26 | M88: 200.99 | N88: 127.85 | O88: 12.1 | P88: 9.66 | Q88: 21.4 | R88: 0.41 | S88: 7.86 | T88: 0.13 | U88: 11.85
A89: Т/к №207 | B89: Макаронник | C89: 180/6 | D89: 8.1 | E89: 10.1 | F89: 32.5 | G89: 237.8 | H89: 0.1 | I89: 0 | J89: 0 | K89: 0 | L89: 0 | M89: 0 | N89: 0 | O89: 25.2 | P89: 13.1 | Q89: 72.4 | R89: 1.6 | S89: 0 | T89: 0 | U89: 0
A90: 54-21гн-2020 | B90: Кофейный напиток с молоком | C90: 200 | D90: 3.9 | E90: 2.9 | F90: 11.2 | G90: 86 | H90: 0.03 | I90: 0.13 | J90: 13.29 | K90: 0 | L90: 0.52 | M90: 38.55 | N90: 183.98 | O90: 148.32 | P90: 30.67 | Q90: 106.79 | R90: 1.06 | S90: 9 | T90: 1.76 | U90: 20
A91: Пром. | B91: Хлеб пшеничный | C91: 20 | D91: 1.52 | E91: 0.16 | F91: 9.84 | G91: 46.9 | H91: 0.02 | I91: 0.01 | J91: 0 | K91: 0 | L91: 0 | M91: 100 | N91: 19 | O91: 4 | P91: 3 | Q91: 13 | R91: 0.2 | S91: 0.64 | T91: 1.2 | U91: 2.9
A92: Пром. | B92: Хлеб ржаной | C92: 20 | D92: 1.3 | E92: 0.2 | F92: 6.7 | G92: 34.2 | H92: 0.04 | I92: 0.02 | J92: 0 | K92: 0 | L92: 0 | M92: 122 | N92: 49 | O92: 7 | P92: 9.4 | Q92: 31.6 | R92: 0.78 | S92: 0 | T92: 6.18 | U92: 0
A93: Пром. | B93: Сушка простая | C93: 30 | D93: 0.8 | E93: 0.39 | F93: 3.5 | G93: 26.5 | H93: 0.05 | I93: 0.02 | J93: 0 | K93: 0 | L93: 0 | M93: 138 | N93: 46 | O93: 8 | P93: 12 | Q93: 32 | R93: 0.8 | S93: 0 | T93: 0 | U93: 0
B94: Итого за Завтрак | C94: 516 | D94: =SUM(D88:D93) -> 16.32 | E94: =SUM(E88:E93) -> 19.15 | F94: 67.74 | G94: 498.5 | H94: 0.26 | I94: 0.2 | J94: 86.18 | K94: 0 | L94: 2.78 | M94: 599.54 | N94: 425.83 | O94: 204.62 | P94: 77.83 | Q94: 277.19 | R94: 4.85 | S94: 17.5 | T94: 9.27 | U94: 34.75
B95: Итого за день | C95: =C94 -> 516 | D95: =D94 -> 16.32 | E95: =E94 -> 19.15 | F95: 67.74 | G95: =G94 -> 498.5 | H95: 0.26 | I95: 0.2 | J95: 86.18 | K95: 0 | L95: 2.78 | M95: 599.54 | N95: 425.83 | O95: 204.62 | P95: 77.83 | Q95: 277.19 | R95: 4.85 | S95: 17.5 | T95: 9.27 | U95: 34.75
A97: 7 день, 2 неделя
A98: № рецептуры | B98: Прием пищи, наименование блюда | C98: Масса | D98: Пищевые вещества | G98: Энергетическая ценность | H98: Витамины | M98: Минеральные вещества
D99: Белки | E99: Жиры | F99: Углеводы | H99: B1 | I99: B2 | J99: A | K99: D | L99: C | M99: Na | N99: K | O99: Ca | P99: Mg | Q99: P | R99: Fe | S99: I | T99: Se | U99: F
C100: г | D100: г | E100: г | F100: г | G100: ккал | H100: мг | I100: мг | J100: мкг рет.экв | K100: мкг | L100: мг | M100: мг | N100: мг | O100: мг | P100: мг | Q100: мг | R100: мг | S100: мкг | T100: мкг | U100: мкг
B101: Понедельник, 2 неделя
B102: Горячий завтрак | C102: 7-10
A103: №Т/К 41 | B103: Салат из моркови с сахаром и растительным маслом | C103: 60 | D103: 0.5 | E103: 6.1 | F103: 4.3 | G103: 74.3 | H103: 0.03 | I103: 0.03 | J103: 732.9 | K103: 0 | L103: 3.63 | M103: 89.79 | N103: 123.26 | O103: 13.5 | P103: 15.57 | Q103: 22.38 | R103: 0.66 | S103: 10.19 | T103: 0.09 | U103: 21.57
A104: 62 | B104: Борщ | C104: 200 | D104: 10.77 | E104: 6.46 | F104: 19.1 | G104: 166 | H104: 0.1 | I104: 0 | J104: 0.2 | K104: 0 | L104: 10.7 | M104: 0 | N104: 0 | O104: 43.5 | P104: 26.9 | Q104: 57.4 | R104: 1.4 | S104: 0 | T104: 0 | U104: 0
A105: Т/к №430 | B105: Чай с сахаром и яблоком | C105: 200 | D105: 0.2 | E105: 0 | F105: 8.2 | G105: 34.1 | H105: 0 | I105: 0 | J105: 0 | K105: 0 | L105: 0.4 | M105: 0 | N105: 0 | O105: 14.1 | P105: 6.5 | Q105: 8.4 | R105: 0.9 | S105: 0 | T105: 0 | U105: 0
A106: т/к №410 | B106: Треугольник П/Ф | C106: 70 | D106: 5.7 | E106: 5 | F106: 29.8 | G106: 221.7 | H106: 0.1 | I106: 0 | J106: 0 | K106: 0 | L106: 1.5 | M106: 0 | N106: 0 | O106: 26.8 | P106: 25.7 | Q106: 100.5 | R106: 1.5 | S106: 0 | T106: 0 | U106: 0
A107: Пром. | B107: Хлеб ржаной | C107: 20 | D107: 1.3 | E107: 0.2 | F107: 6.7 | G107: 34.2 | H107: 0.04 | I107: 0.02 | J107: 0 | K107: 0 | L107: 0 | M107: 122 | N107: 49 | O107: 7 | P107: 9.4 | Q107: 31.6 | R107: 0.78 | S107: 0 | T107: 6.18 | U107: 0
B108: Итого за Завтрак | C108: =SUM(C103:C107) -> 550 | D108: =SUM(D103:D107) -> 18.47 | E108: =SUM(E103:E107) -> 17.76 | F108: 68.1 | G108: =SUM(G103:G107) -> 530.3 | H108: 0.27 | I108: 0.05 | J108: 733.1 | K108: 0 | L108: 16.23 | M108: 211.79 | N108: 172.26 | O108: 104.9 | P108: 84.07 | Q108: 220.28 | R108: 5.24 | S108: 10.19 | T108: 6.27 | U108: 21.57
B109: Итого за день | C109: =C108 -> 550 | D109: =D108 -> 18.47 | E109: 17.76 | F109: 68.1 | G109: 530.3 | H109: 0.27 | I109: 0.05 | J109: 733.1 | K109: 0 | L109: 16.23 | M109: 211.79 | N109: 172.26 | O109: 104.9 | P109: 84.07 | Q109: 220.28 | R109: 5.24 | S109: 10.19 | T109: 6.27 | U109: 21.57
A111: 8 день, 2 неделя
A112: № рецептуры | B112: Прием пищи, наименование блюда | C112: Масса | D112: Пищевые вещества | G112: Энергетическая ценность | H112: Витамины | M112: Минеральные вещества
D113: Белки | E113: Жиры | F113: Углеводы | H113: B1 | I113: B2 | J113: A | K113: D | L113: C | M113: Na | N113: K | O113: Ca | P113: Mg | Q113: P | R113: Fe | S113: I | T113: Se | U113: F
C114: г | D114: г | E114: г | F114: г | G114: ккал | H114: мг | I114: мг | J114: мкг рет.экв | K114: мкг | L114: мг | M114: мг | N114: мг | O114: мг | P114: мг | Q114: мг | R114: мг | S114: мкг | T114: мкг | U114: мкг
B115: Вторник, 2 неделя
B116: Горячий завтрак | C116: 7-10
A117: 54-9з-2020 | B117: Салат из белокочанной капусты с морковью, яблоками и растительным маслом | C117: 60 | D117: 0.8 | E117: 6.1 | F117: 3.6 | G117: 72.5 | H117: 0.02 | I117: 0.02 | J117: 241.63 | K117: 0 | L117: 17.32 | M117: 87.51 | N117: 160.14 | O117: 23.5 | P117: 11.17 | Q117: 18.8 | R117: 0.56 | S117: 9.87 | T117: 0.15 | U117: 10.98
A118: 54-12м-2020 | B118: Плов с куринными грудками | C118: 150/50 | D118: 11.7 | E118: 8.98 | F118: 26.01 | G118: 233.2 | H118: 0.07 | I118: 0.06 | J118: 144.87 | K118: 0 | L118: 2.08 | M118: 272.9 | N118: 287.76 | O118: 72.64 | P118: 78.85 | Q118: 174.89 | R118: 1.53 | S118: 37.41 | T118: 19.63 | U118: 118.1
A119: 54-3гн-2020 | B119: Чай с лимоном и сахаром | C119: 207 | D119: 0.2 | E119: 0.1 | F119: 6.6 | G119: 27.9 | H119: 0 | I119: 0.01 | J119: 0.38 | K119: 0 | L119: 1.16 | M119: 1.26 | N119: 30.23 | O119: 67 | P119: 4.56 | Q119: 8.52 | R119: 0.77 | S119: 0.01 | T119: 0.02 | U119: 0.7
A120: Пром. | B120: Хлеб пшеничный | C120: 20 | D120: 1.52 | E120: 0.16 | F120: 9.84 | G120: 46.9 | H120: 0.02 | I120: 0.01 | J120: 0 | K120: 0 | L120: 0 | M120: 100 | N120: 19 | O120: 4 | P120: 3 | Q120: 13 | R120: 0.2 | S120: 0.64 | T120: 1.2 | U120: 2.9
A121: Пром. | B121: Хлеб ржаной | C121: 20 | D121: 1.3 | E121: 0.2 | F121: 6.7 | G121: 34.2 | H121: 0.04 | I121: 0.02 | J121: 0 | K121: 0 | L121: 0 | M121: 122 | N121: 49 | O121: 7 | P121: 9.4 | Q121: 31.6 | R121: 0.78 | S121: 0 | T121: 6.18 | U121: 0
A122: Пром. | B122: Фрукт (яблоко, банан, апельсин) | C122: 220 | D122: 0.6 | E122: 0.6 | F122: 14.7 | G122: 66.6 | H122: 0.04 | I122: 0.03 | J122: 7.5 | K122: 0 | L122: 15 | M122: 39 | N122: 417 | O122: 24 | P122: 14 | Q122: 17 | R122: 3.3 | S122: 3 | T122: 0.4 | U122: 12
B123: Итого за Завтрак | C123: 727 | D123: =SUM(D117:D122) -> 16.12 | E123: =SUM(E117:E122) -> 16.14 | F123: 67.45 | G123: 481.3 | H123: 0.19 | I123: 0.15 | J123: 394.38 | K123: 0 | L123: 35.56 | M123: 622.67 | N123: 963.13 | O123: 198.14 | P123: 120.98 | Q123: 263.81 | R123: 7.14 | S123: 50.93 | T123: 27.58 | U123: 144.68
B124: Итого за день | C124: =C123 -> 727 | D124: =D123 -> 16.12 | E124: =E123 -> 16.14 | F124: 67.45 | G124: 481.3 | H124: 0.19 | I124: 0.15 | J124: 394.38 | K124: 0 | L124: 35.56 | M124: 622.67 | N124: 963.13 | O124: 198.14 | P124: 120.98 | Q124: 263.81 | R124: 7.14 | S124: 50.93 | T124: 27.58 | U124: 144.68
A126: 9 день, 2 неделя
A127: № рецептуры | B127: Прием пищи, наименование блюда | C127: Масса | D127: Пищевые вещества | G127: Энергетическая ценность | H127: Витамины | M127: Минеральные вещества
D128: Белки | E128: Жиры | F128: Углеводы | H128: B1 | I128: B2 | J128: A | K128: D | L128: C | M128: Na | N128: K | O128: Ca | P128: Mg | Q128: P | R128: Fe | S128: I | T128: Se | U128: F
C129: г | D129: г | E129: г | F129: г | G129: ккал | H129: мг | I129: мг | J129: мкг рет.экв | K129: мкг | L129: мг | M129: мг | N129: мг | O129: мг | P129: мг | Q129: мг | R129: мг | S129: мкг | T129: мкг | U129: мкг
B130: Среда, 2 неделя
B131: Горячий завтрак | C131: 7-10
A132: 54-13з-2020 | B132: Салат из свеклы отварной с растительным маслом | C132: 60 | D132: 0.8 | E132: 2.7 | F132: 4.6 | G132: 45.6 | H132: 0.01 | I132: 0.02 | J132: 0.68 | K132: 0 | L132: 2.28 | M132: 78.77 | N132: 136.27 | O132: 19.21 | P132: 10.95 | Q132: 21.51 | R132: 0.7 | S132: 11.99 | T132: 0.35 | U132: 11.4
A133: 54-11г-2020 | B133: Картофельное пюре | C133: 150 | D133: 3.1 | E133: 5.3 | F133: 19.8 | G133: 139.4 | H133: 0.12 | I133: 0.11 | J133: 23.8 | K133: 0.09 | L133: 10.2 | M133: 161.78 | N133: 624.83 | O133: 39.49 | P133: 28.23 | Q133: 84.47 | R133: 1.03 | S133: 28.46 | T133: 0.78 | U133: 42.79
A134: ном.рец №174 | B134: Тефтели мясные из говядины, полуфабрикат в соусе | C134: 75/30 | D134: 8.31 | E134: 8.37 | F134: 15.42 | G134: 168.9 | H134: 0 | I134: 0 | J134: 38.45 | K134: 0.01 | L134: 1.79 | M134: 3 | N134: 43 | O134: 45.75 | P134: 35.13 | Q134: 109 | R134: 1.6 | S134: 0 | T134: 0 | U134: 0
A135: 54-21гн-2020 | B135: Кофейный напиток с молоком | C135: 200 | D135: 3.9 | E135: 2.9 | F135: 11.2 | G135: 86 | H135: 0.03 | I135: 0.13 | J135: 13.29 | K135: 0 | L135: 0.52 | M135: 38.55 | N135: 183.98 | O135: 148.32 | P135: 30.67 | Q135: 106.79 | R135: 1.06 | S135: 9 | T135: 1.76 | U135: 20
A136: Пром. | B136: Хлеб пшеничный | C136: 20 | D136: 1.52 | E136: 0.16 | F136: 9.84 | G136: 46.9 | H136: 0.02 | I136: 0.01 | J136: 0 | K136: 0 | L136: 0 | M136: 100 | N136: 19 | O136: 4 | P136: 3 | Q136: 13 | R136: 0.2 | S136: 0.64 | T136: 1.2 | U136: 2.9
A137: Пром. | B137: Хлеб ржаной | C137: 20 | D137: 1.3 | E137: 0.2 | F137: 6.7 | G137: 34.2 | H137: 0.04 | I137: 0.02 | J137: 0 | K137: 0 | L137: 0 | M137: 122 | N137: 49 | O137: 7 | P137: 9.4 | Q137: 31.6 | R137: 0.78 | S137: 0 | T137: 6.18 | U137: 0
B138: Итого за Завтрак | C138: 555 | D138: =SUM(D132:D137) -> 18.93 | E138: =SUM(E132:E137) -> 19.63 | F138: 67.56 | G138: 521 | H138: 0.22 | I138: 0.29 | J138: 76.22 | K138: 0.1 | L138: 14.79 | M138: 504.1 | N138: 1056.08 | O138: 263.77 | P138: 117.38 | Q138: 366.37 | R138: 5.37 | S138: 50.09 | T138: 10.27 | U138: 77.09
B139: Итого за день | C139: =C138 -> 555 | D139: 18.93 | E139: 19.63 | F139: 67.56 | G139: 521 | H139: 0.22 | I139: =I138 -> 0.29 | J139: 76.22 | K139: 0.1 | L139: 14.79 | M139: 504.1 | N139: 1056.08 | O139: 263.77 | P139: 117.38 | Q139: 366.37 | R139: 5.37 | S139: 50.09 | T139: 10.27 | U139: 77.09
A141: 10 день, 2 неделя
A142: № рецептуры | B142: Прием пищи, наименование блюда | C142: Масса | D142: Пищевые вещества | G142: Энергетическая ценность | H142: Витамины | M142: Минеральные вещества
D143: Белки | E143: Жиры | F143: Углеводы | H143: B1 | I143: B2 | J143: A | K143: D | L143: C | M143: Na | N143: K | O143: Ca | P143: Mg | Q143: P | R143: Fe | S143: I | T143: Se | U143: F
C144: г | D144: г | E144: г | F144: г | G144: ккал | H144: мг | I144: мг | J144: мкг рет.экв | K144: мкг | L144: мг | M144: мг | N144: мг | O144: мг | P144: мг | Q144: мг | R144: мг | S144: мкг | T144: мкг | U144: мкг
B145: Четверг, 2 неделя
B146: Горячий завтрак | C146: 7-10
A147: 54-7з-2020 | B147: Салат из белокочанной капусты с растительным маслом | C147: 60 | D147: 1.5 | E147: 6.1 | F147: 6.2 | G147: 85.8 | H147: 0.03 | I147: 0.04 | J147: 122.25 | K147: 0 | L147: 34.78 | M147: 88.69 | N147: 247.73 | O147: 40.39 | P147: 15.18 | Q147: 30.31 | R147: 0.55 | S147: 10.73 | T147: 0.26 | U147: 12.66
A148: 54-4г-2020 | B148: Каша гречневая рассыпчатая | C148: 150 | D148: 3.2 | E148: 4.8 | F148: 25.9 | G148: 107.1 | H148: 0.21 | I148: 0.12 | J148: 19.19 | K148: 0.09 | L148: 0 | M148: 149.45 | N148: 219.36 | O148: 46.62 | P148: 120.16 | Q148: 180.99 | R148: 4.05 | S148: 22.28 | T148: 3.52 | U148: 16.06
A149: 54-7р-2020 | B149: Рыба припущенная в молоко | C149: 70/30 | D149: 8.06 | E149: 4.42 | F149: 2.89 | G149: 131.6 | H149: 0.08 | I149: 0.11 | J149: 9.02 | K149: 0.16 | L149: 1 | M149: 111 | N149: 347 | O149: 68 | P149: 44 | Q149: 202 | R149: 0.7 | S149: 133.48 | T149: 11.9 | U149: 572.6
A150: 54-5хн | B150: Компот из яблок и вишни | C150: 200 | D150: 0.23 | E150: 0.11 | F150: 10.15 | G150: 22.5 | H150: 0 | I150: 0 | J150: 2.53 | K150: 0 | L150: 2 | M150: 8 | N150: 91 | O150: 64 | P150: 6 | Q150: 7 | R150: 0.5 | S150: 0.82 | T150: 0.1 | U150: 4.18
A151: Пром. | B151: Булочка ярославская (хлебзавод) 50 гр | C151: 50 | D151: 3.85 | E151: 1.2 | F151: 26.7 | G151: 133 | H151: 0.06 | I151: 0.01 | J151: 0 | K151: 0 | L151: 0 | M151: 219 | N151: 49 | O151: 10 | P151: 7 | Q151: 34 | R151: 0.6 | S151: 0 | T151: 0 | U151: 0
A152: Пром. | B152: Хлеб ржаной | C152: 20 | D152: 1.3 | E152: 0.2 | F152: 6.7 | G152: 34.2 | H152: 0.04 | I152: 0.02 | J152: 0 | K152: 0 | L152: 0 | M152: 122 | N152: 49 | O152: 7 | P152: 9.4 | Q152: 31.6 | R152: 0.78 | S152: 0 | T152: 6.18 | U152: 0
B153: Итого за Завтрак | C153: 580 | D153: =SUM(D147:D152) -> 18.14 | E153: =SUM(E147:E152) -> 16.83 | F153: 78.54 | G153: =SUM(G147:G152) -> 514.2 | H153: 0.42 | I153: 0.3 | J153: 152.99 | K153: 0.25 | L153: 37.78 | M153: 698.14 | N153: 1003.09 | O153: 236.01 | P153: 201.74 | Q153: 485.9 | R153: 7.18 | S153: 167.31 | T153: 21.96 | U153: 605.5
B154: Итого за день | C154: =C153 -> 580 | D154: =D153 -> 18.14 | E154: 16.83 | F154: 78.54 | G154: 514.2 | H154: 0.42 | I154: 0.3 | J154: 152.99 | K154: 0.25 | L154: 37.78 | M154: 698.14 | N154: 1003.09 | O154: 236.01 | P154: 201.74 | Q154: 485.9 | R154: 7.18 | S154: 167.31 | T154: 21.96 | U154: 605.5
A156: 11 день, 2 неделя
A157: № рецептуры | B157: Прием пищи, наименование блюда | C157: Масса | D157: Пищевые вещества | G157: Энергетическая ценность | H157: Витамины | M157: Минеральные вещества
D158: Белки | E158: Жиры | F158: Углеводы | H158: B1 | I158: B2 | J158: A | K158: D | L158: C | M158: Na | N158: K | O158: Ca | P158: Mg | Q158: P | R158: Fe | S158: I | T158: Se | U158: F
C159: г | D159: г | E159: г | F159: г | G159: ккал | H159: мг | I159: мг | J159: мкг рет.экв | K159: мкг | L159: мг | M159: мг | N159: мг | O159: мг | P159: мг | Q159: мг | R159: мг | S159: мкг | T159: мкг | U159: мкг
B160: Пятница, 2 неделя
B161: Горячий завтрак | C161: 7-10
A162: 54-16з-2020 | B162: Винегрет с растительным маслом | C162: 60 | D162: 0.7 | E162: 5.4 | F162: 4 | G162: 67.1 | H162: 0.02 | I162: 0.02 | J162: 72.89 | K162: 0 | L162: 2.26 | M162: 200.99 | N162: 127.85 | O162: 12.1 | P162: 9.66 | Q162: 21.4 | R162: 0.41 | S162: 7.86 | T162: 0.13 | U162: 11.85
A163: 54-1г-2020 | B163: Спагетти отварные | C163: 150 | D163: 5.3 | E163: 4.9 | F163: 32.8 | G163: 196.8 | H163: 0.06 | I163: 0.02 | J163: 18.36 | K163: 0.09 | L163: 0 | M163: 149.04 | N163: 53.8 | O163: 105.83 | P163: 7.19 | Q163: 40.7 | R163: 0.73 | S163: 20.77 | T163: 0.06 | U163: 11.92
A164: 54-2м-2020 | B164: Гуляш из говядины | C164: 60/40 | D164: 6.99 | E164: 6.54 | F164: 8.3 | G164: 130.8 | H164: 0.04 | I164: 0.12 | J164: 25.46 | K164: 0.07 | L164: 1 | M164: 122 | N164: 322 | O164: 55 | P164: 23 | Q164: 166 | R164: 2.5 | S164: 17.06 | T164: 0.4 | U164: 62.71
A165: 54-2гн-2020 | B165: Чай с сахаром | C165: 200 | D165: 0.19 | E165: 0.04 | F165: 6.42 | G165: 26.8 | H165: 0 | I165: 0.01 | J165: 0.3 | K165: 0 | L165: 0 | M165: 1 | N165: 21 | O165: 66 | P165: 4 | Q165: 7 | R165: 0.7 | S165: 0 | T165: 0 | U165: 0
A166: Пром. | B166: Хлеб ржаной | C166: 20 | D166: 1.3 | E166: 0.2 | F166: 6.7 | G166: 34.2 | H166: 0.04 | I166: 0.02 | J166: 0 | K166: 0 | L166: 0 | M166: 122 | N166: 49 | O166: 7 | P166: 9.4 | Q166: 31.6 | R166: 0.78 | S166: 0 | T166: 6.18 | U166: 0
A167: Пром. | B167: Хлеб пшеничный | C167: 20 | D167: 1.52 | E167: 0.16 | F167: 9.84 | G167: 46.9 | H167: 0.02 | I167: 0.01 | J167: 0 | K167: 0 | L167: 0 | M167: 100 | N167: 19 | O167: 4 | P167: 3 | Q167: 13 | R167: 0.2 | S167: 0.64 | T167: 1.2 | U167: 2.9
B168: Итого за Завтрак | C168: 550 | D168: =SUM(D162:D167) -> 16 | E168: =SUM(E162:E167) -> 17.24 | F168: 68.06 | G168: 502.6 | H168: 0.18 | I168: 0.2 | J168: 117.01 | K168: 0.16 | L168: 3.26 | M168: 695.03 | N168: 592.65 | O168: 249.93 | P168: 56.25 | Q168: 279.7 | R168: 5.32 | S168: 46.33 | T168: 7.97 | U168: 89.38
B169: Итого за день | C169: =C168 -> 550 | D169: =D168 -> 16 | E169: 17.24 | F169: 68.06 | G169: 502.6 | H169: 0.18 | I169: 0.2 | J169: 117.01 | K169: 0.16 | L169: 3.26 | M169: 695.03 | N169: 592.65 | O169: 249.93 | P169: 56.25 | Q169: 279.7 | R169: 5.32 | S169: 46.33 | T169: 7.97 | U169: 89.38
A171: 12 день, 2 неделя
A172: № рецептуры | B172: Прием пищи, наименование блюда | C172: Масса | D172: Пищевые вещества | G172: Энергетическая ценность | H172: Витамины | M172: Минеральные вещества
D173: Белки | E173: Жиры | F173: Углеводы | H173: B1 | I173: B2 | J173: A | K173: D | L173: C | M173: Na | N173: K | O173: Ca | P173: Mg | Q173: P | R173: Fe | S173: I | T173: Se | U173: F
C174: г | D174: г | E174: г | F174: г | G174: ккал | H174: мг | I174: мг | J174: мкг рет.экв | K174: мкг | L174: мг | M174: мг | N174: мг | O174: мг | P174: мг | Q174: мг | R174: мг | S174: мкг | T174: мкг | U174: мкг
B175: Суббота, 2 неделя
B176: Горячий завтрак | C176: 7-10
A177: 54-9з-2020 | B177: Салат из белокочанной капусты с морковью, яблоками и растительным маслом | C177: 60 | D177: 0.8 | E177: 6.1 | F177: 3.6 | G177: 72.5 | H177: 0.02 | I177: 0.02 | J177: 241.63 | K177: 0 | L177: 17.32 | M177: 87.51 | N177: 160.14 | O177: 23.5 | P177: 11.17 | Q177: 18.8 | R177: 0.56 | S177: 9.87 | T177: 0.15 | U177: 10.98
A178: 54-1т-2020 | B178: Запеканка из творога | C178: 150 | D178: 10.38 | E178: 9.38 | F178: 29.25 | G178: 287.3 | H178: 0.06 | I178: 0.3 | J178: 51.11 | K178: 0.16 | L178: 0 | M178: 181 | N178: 159 | O178: 223 | P178: 32 | Q178: 291 | R178: 0.8 | S178: 28.82 | T178: 39 | U178: 49.63
A179: Пром. | B179: Молоко сгущенное с сахаром | C179: 20 | D179: 1.44 | E179: 1.7 | F179: 11.1 | G179: 65.5 | H179: 0.01 | I179: 0.06 | J179: 5.64 | K179: 0 | L179: 0 | M179: 20 | N179: 61 | O179: 54 | P179: 6 | Q179: 38 | R179: 0 | S179: 1.4 | T179: 0.5 | U179: 7
A180: 54-3гн-2020 | B180: Чай с лимоном и сахаром | C180: 207 | D180: 0.2 | E180: 0.1 | F180: 6.6 | G180: 27.9 | H180: 0 | I180: 0.01 | J180: 0.38 | K180: 0 | L180: 1.16 | M180: 1.26 | N180: 30.23 | O180: 67 | P180: 4.56 | Q180: 8.52 | R180: 0.77 | S180: 0.01 | T180: 0.02 | U180: 0.7
A181: Пром. | B181: Хлеб ржаной | C181: 20 | D181: 1.3 | E181: 0.2 | F181: 6.7 | G181: 34.2 | H181: 0.04 | I181: 0.02 | J181: 0 | K181: 0 | L181: 0 | M181: 122 | N181: 49 | O181: 7 | P181: 9.4 | Q181: 31.6 | R181: 0.78 | S181: 0 | T181: 6.18 | U181: 0
A182: Пром. | B182: Хлеб пшеничный | C182: 20 | D182: 1.52 | E182: 0.16 | F182: 9.84 | G182: 46.9 | H182: 0.02 | I182: 0.01 | J182: 0 | K182: 0 | L182: 0 | M182: 100 | N182: 19 | O182: 4 | P182: 3 | Q182: 13 | R182: 0.2 | S182: 0.64 | T182: 1.2 | U182: 2.9
A183: Пром. | B183: Сушка простая | C183: 30 | D183: 0.8 | E183: 0.39 | F183: 3.5 | G183: 26.5 | H183: 0.05 | I183: 0.02 | J183: 0 | K183: 0 | L183: 0 | M183: 138 | N183: 46 | O183: 8 | P183: 12 | Q183: 32 | R183: 0.8 | S183: 0 | T183: 0 | U183: 0
B184: Итого за Завтрак | C184: =SUM(C177:C183) -> 507 | D184: =SUM(D177:D183) -> 16.44 | E184: =SUM(E177:E183) -> 18.03 | F184: 70.59 | G184: 560.8 | H184: 0.2 | I184: 0.44 | J184: 298.76 | K184: 0.16 | L184: 18.48 | M184: 649.77 | N184: 524.37 | O184: 386.5 | P184: 78.13 | Q184: 432.92 | R184: 3.91 | S184: 40.74 | T184: 47.05 | U184: 71.21
B185: Итого за день | C185: =C184 -> 507 | D185: =D184 -> 16.44 | E185: =E184 -> 18.03 | F185: 70.59 | G185: =G184 -> 560.8 | H185: 0.2 | I185: 0.44 | J185: 298.76 | K185: 0.16 | L185: 18.48 | M185: 649.77 | N185: 524.37 | O185: 386.5 | P185: 78.13 | Q185: 432.92 | R185: 3.91 | S185: 40.74 | T185: 47.05 | U185: 71.21
D187: ИТОГО ПО МЕНЮ
B189: ИТОГО | C189: Пищевые вещества | F189: Энергетическая ценность | G189: Витамины | L189: Минеральные вещества
C190: Белки | D190: Жиры | E190: Углеводы | G190: B1 | H190: B2 | I190: A | J190: D | K190: C | L190: Na | M190: K | N190: Ca | O190: Mg | P190: P | Q190: Fe | R190: I | S190: Se | T190: F
C191: г | D191: г | E191: г | F191: ккал | G191: мг | H191: мг | I191: мкг рет.экв | J191: мкг | K191: мг | L191: мг | M191: мг | N191: мг | O191: мг | P191: мг | Q191: мг | R191: мкг | S191: мкг | T191: мкг
B192: Итого за весь период | C192: =D20+D35+D51+D66+D80+D95+D109+D124+D139+D154+D169+D185 -> 210.42 | D192: 219.56 | E192: 863.22 | F192: 6376.25 | G192: 2.99 | H192: 2.25 | I192: 4054.91 | J192: 1.01 | K192: 244.34 | L192: 6343.47 | M192: 7742.62 | N192: 2516.04 | O192: 1172.49 | P192: 3705.04 | Q192: 65.23 | R192: 562.18 | S192: 190.56 | T192: 1342.23
B193: Среднее значение | C193: =C192/12 -> 17.54 | D193: =D192/12 -> 18.30 | E193: 71.935 | F193: =F192/12 -> 531.3541667 | G193: 0.25 | H193: 0.19 | I193: 337.9091667 | J193: 0.08 | K193: 20.36166667 | L193: 528.6225 | M193: 645.2183333 | N193: 209.67 | O193: 97.7075 | P193: 308.7533333 | Q193: 5.44 | R193: 46.84833333 | S193: 15.88 | T193: 111.8525
B194: Содержание белков, жиров, углеводов в меню за период в % от калорийности | C194: 14.86 | D194: =D192*9/F192*100 -> 30.99 | E194: =E192*4*100/F192 -> 54.15
C196: СУММАРНЫЕ ОБЪЕМЫ БЛЮД ПО ПРИЕМАМ ПИЩИ (В ГРАММАХ)
B198: Возраст детей | C198: Горячий завтрак
B199: 7-10 лет | C199: =(C185+C169+C154+C139+C124+C109+C95+C80+C66+C51+C35+C20)/12 -> 579
B201: Овощи для салатов (морковь, лук, капуста, картофель) урожай 2024 года
